Cogmind - Beta 16.1 @@@ ROGUE MODE // 2026.03.24 @ 19:39:19 Player: JaideBun Result: Destroyed by G-47 Trooper with Particle Gun Performance ------------- Evolutions (0) 0 Regions Visited (1) 200 Robots Destroyed (5) 25 Value Destroyed (88) 88 Prototype IDs (0) 0 Alien Tech Used (0) 0 Bonus (0) 0 TOTAL SCORE: 313 Bonus ------- None Cogmind --------- Core Integrity 0/250 Matter 219/300 Energy 90/100 System Corruption 0% Temperature Cool (27) Movement Core (100) Ox1 Location -10/Materials Parts ------- > --- POWER (1) -------- (None) > --- PROPULSION (2) --- (None) > --- UTILITY (2) ------ Small Storage Unit > --- WEAPON (2) ------- (None) > --- INVENTORY (8) ---- Small Storage Unit ECM Suite Datajack Peak State ------------ > --- POWER ------------ Ion Engine > --- PROPULSION ------- Light Treads Light Treads > --- UTILITY ---------- Small Storage Unit Small Storage Unit > --- WEAPON ----------- Medium Laser Small Laser > --- INVENTORY -------- Light Ion Engine Mining Laser Mining Laser [Rating: 7] Favorites ----------- Power Ion Engine Engine Ion Engine Propulsion Light Treads Treads Light Treads Utility Small Storage Unit Storage Small Storage Unit Protection Light Armor Plating Weapon Medium Laser Energy Gun Medium Laser Ballistic Gun Light Assault Rifle Special Weapon Mining Laser Build | -11 -10 ------- Run | Yrd Mat Slots Evolved . | . . Power . | . . Propulsion . | . . Utility . | . . Weapon . | . . Parts Attached 14 | 7 7 Power 2 | 1 1 Engine 2 | 1 1 Core . | . . Reactor . | . . Propulsion 2 | 2 . Treads 2 | 2 . Leg . | . . Wheel . | . . Hover . | . . Flight . | . . Utility 5 | 2 3 Device . | . . Storage 2 | 2 . Processor . | . . Hackware . | . . Protection 3 | . 3 Artifact . | . . Weapon 5 | 2 3 Energy Gun 2 | 2 . Energy Cannon . | . . Ballistic Gun 1 | . 1 Ballistic Cannon . | . . Launcher . | . . Special Weapon 2 | . 2 Impact Weapon . | . . Slashing Weapon . | . . Piercing Weapon . | . . Special Melee Weapon . | . . Unidentified Prototypes . | . . Parts Lost 11 | . 11 Power 2 | . 2 Propulsion 2 | . 2 Utility 3 | . 3 Weapon 4 | . 4 Highest Loss Streak 11 | . 11 To Critical Strikes . | . . Average Backups 4 | 1 5 Power . | . . Propulsion . | . . Utility 1 | . 2 Weapon 1 | . 1 Tool/Special . | . . Unused Backups 2 | . 2 Power . | . . Propulsion . | . . Utility 1 | . 1 Weapon . | . . Tool/Special 1 | . 1 Average Slot Usage (%) 85 | . 85 Engine 12 | . 12 Treads 26 | . 26 Storage 14 | . 14 Protection 4 | . 4 Energy Gun 24 | . 24 Ballistic Gun 2 | . 2 Peak Build Rating 7 | 7 7 Average Rating 5 | 5 6 On Entrance 3 | . 6 Avg Prop Armor Cover (%) . | . . Naked Turns . | . . Heaviest Build 16 | 13 16 Greatest Support 40 | 40 40 Greatest Overweight (x) 3 | . 3 Average Overweight (x) . | . . Largest Inventory Capacity 8 | 8 8 Average Capacity 7 | 7 8 Most Carried 8 | 4 8 Average Carried 4 | 1 5 Final Capacity 8 | 8 8 Final Carried 4 | 4 3 Class Distribution -------------------- 100% | Mutant Dominant Class ---------------- Mutant | -10/Materials Resources | -11 -10 ----------- Run | Yrd Mat Matter Collected 270 | 270 . Remotely . | . . Salvage Created 202 | 117 85 Parts 10 | 6 4 Haulers Intercepted . | . . Recyclers Shooed . | . . Parts Field Recycled . | . . Retrieved Matter . | . . Parts Self-Destructed . | . . Prevented . | . . Parts Restored . | . . Kills | -11 -10 ------- Run | Yrd Mat Combat Hostiles Destroyed 2 | . 2 Guns 2 | . 2 Classes Destroyed 3 | 2 1 Tunneler 2 | 2 . Recycler 1 | 1 . Grunt 2 | . 2 Best Kill Streak 3 | 3 2 Combat Bots Only 2 | . 2 Max Kills in Single Turn 1 | 1 1 Gunslinging . | . . Exploded . | . . Melee . | . . Uniques/NPCs Destroyed . | . . Combat | -11 -10 -------- Run | Yrd Mat Hostile Shots Fired 127 | . 127 Missed 31 | . 31 Hits 96 | . 96 Projectile 96 | . 96 Critical Strikes 3 | . 3 Damage Taken 1147 | . 1147 Core 264 | . 264 Absorbed by Shields . | . . Core Remaining (%) 100 | 100 . Volleys Fired 46 | 11 35 Largest 2 | 2 2 Hottest 100 | 90 100 Shots Fired 75 | 22 53 Gun 74 | 22 52 Cannon . | . . Launcher . | . . Special 1 | . 1 Kinetic 26 | . 26 Thermal 49 | 22 27 Explosive . | . . Electromagnetic . | . . Robot Hit Streak 6 | 3 6 Robot Miss Streak 5 | 2 5 Penetration Max . | . . Secondary Targets 1 | . 1 Max Gunslinging Chain 1 | . 1 Shots Hit Robots 40 | 11 29 Core Hits 11 | 4 7 Critical Kills . | . . Critical Parts Destroyed . | . . Critical Strikes 2 | 1 1 Burn 2 | 1 1 Melee Attacks . | . . Impact . | . . Slashing . | . . Piercing . | . . Sneak Attacks . | . . Combat Hostiles . | . . Follow-up Attacks . | . . Damage Inflicted 478 | 147 331 Guns 478 | 147 331 Cannons . | . . Explosions . | . . Melee . | . . Ramming . | . . Kinetic 110 | . 110 Thermal 368 | 147 221 Explosive . | . . Electromagnetic . | . . Impact . | . . Slashing . | . . Piercing . | . . Highest Corruption . | . . Average Corruption . | . . Corruption Purged . | . . Corruption Blocked . | . . Overload Shots . | . . Overflow Damage . | . . Projectiles . | . . Explosions . | . . Melee . | . . Knockbacks . | . . Impact . | . . Kinetic . | . . Secondary . | . . Self-Inflicted Damage . | . . Shots . | . . Rammed . | . . Targets Rammed . | . . Kicked . | . . Crushed . | . . Highest Temperature 374 | 150 374 Average Temperature 148 | 56 181 Received Heat Transfer 696 | . 696 Effects 3 | . 3 Energy Bleed 2 | . 2 Interference 1 | . 1 Siege Activations . | . . Martial Activations . | . . Shielding Activations . | . . Robots Disrupted . | . . Combat Hostiles . | . . Robots Corrupted . | . . Combat Hostiles . | . . Parts Fried . | . . Impact Corruptions . | . . Robots Melted . | . . Combat Hostiles . | . . Parts Melted 3 | 1 2 Heat Transferred 1162 | 482 680 Parts Sabotaged . | . . Parts Stolen . | . . Parts Stripped . | . . Power Chain Reactions . | . . Alert | -11 -10 ------- Run | Yrd Mat Maximum Alert Level . | . . Low Security (%) 100 | 100 100 Level 1 . | . . Level 2 . | . . Level 3 . | . . Level 4 . | . . Level 5 . | . . High Security . | . . Max Security . | . . Peak Influence 50 | 15 50 Initial . | . . Average 3 | 1 4 Influence Increases 100 | 15 85 Destroy 0b10 Robot/C 40 | . 40 Destroy 0b10 Robot/NC 15 | 15 . Lose Combat Pursuer 45 | . 45 Influence Decreases 100 | 15 85 Time Decay 58 | 15 43 Lost Part 42 | . 42 Squads Dispatched 2 | . 2 Investigation 1 | . 1 Extermination . | . . Reinforcement 1 | . 1 Assault . | . . Garrison . | . . Intercept . | . . Searches Triggered . | . . Construction Impeded . | . . Haulers Reinforced . | . . Active Scanning Responses . | . . Cargo Convoy Interrupts . | . . Stealth | -11 -10 --------- Run | Yrd Mat Distress Signals 2 | . 2 Communications Jammed . | . . Distress Signals . | . . Times Spotted 16 | . 16 Peak Tracking Total 8 | . 8 Tactical Retreats 3 | . 3 Traps | -11 -10 ------- Run | Yrd Mat Traps Triggered 2 | . 2 Indirectly . | . . Trap Hack Attempts . | . . Triggered . | . . Disarmed . | . . Reprogrammed . | . . Reused . | . . Traps Extracted . | . . Installed . | . . Triggered . | . . Machines | -11 -10 ---------- Run | Yrd Mat Machines Disabled . | . . Max in Single Turn . | . . Machines Repaired . | . . Machines Dismantled . | . . Machines Sabotaged . | . . Overloaded Fab Kills . | . . Hacking | -11 -10 --------- Run | Yrd Mat Machines Accessed 3 | . 3 Terminals 3 | . 3 Fabricators . | . . Repair Stations . | . . Recycling Units . | . . Scanalyzers . | . . Garrison Access . | . . Total Hacks 7 | . 7 Successful 3 | . 3 Failed 4 | . 4 Catastrophic . | . . Database Lockouts . | . . Manual . | . . Terminals 7 | . 7 Fabricators . | . . Repair Stations . | . . Recycling Units . | . . Scanalyzers . | . . Garrison Access . | . . Terminal Hacks 3 | . 3 Record 2 | . 2 Locate Traps 1 | . 1 Fabricator Hacks . | . . Repair Station Hacks . | . . Recycling Unit Hacks . | . . Scanalyzer . | . . Garrison Access Hacks . | . . Unauthorized Hacks . | . . Terminals . | . . Fabricators . | . . Repair Stations . | . . Recycling Units . | . . Scanalyzers . | . . Garrison Access . | . . Data Cores Recovered . | . . Used . | . . Hacking Detections 3 | . 3 Full Trace Events 2 | . 2 Feedback Events . | . . Feedback Blocked . | . . Robot Schematics Acquired . | . . Robots Built . | . . Authchips . | . . Time . | . . Total Robot Build Rating . | . . Part Schematics Acquired . | . . Parts Built . | . . Authchips . | . . Time . | . . Total Part Build Rating . | . . Part Studies Acquired . | . . Parts Repaired . | . . Time . | . . Parts Recycled . | . . Recycled Matter . | . . Retrieved Matter . | . . Retrieved Components . | . . Parts Scanalyzed . | . . Part Schematics Acquired . | . . Parts Damaged . | . . Bothacking | -11 -10 ------------ Run | Yrd Mat Used RIF Installer . | . . Robots Hacked . | . . Non-combat . | . . Combat . | . . Robot Hacks Applied . | . . Relay Couplers Released . | . . Fabnet Peak Effective % . | . . Robots Rewired . | . . Allies Hacked . | . . Hacks Repelled . | . . Allies | -11 -10 -------- Run | Yrd Mat Total Allies . | . . Largest Group . | . . Highest-Rated Group . | . . Highest-Rated Ally . | . . Total Orders . | . . Ally Attacks . | . . Total Damage . | . . Kills . | . . Allies Corrupted . | . . Allies Melted . | . . Intel | -11 -10 ------- Run | Yrd Mat Active Infowar (turns) . | . . Robot Analysis Total . | . . Derelict Logs Recovered . | . . Drone Launches . | . . Drone Recoveries . | . . Exploration | -11 -10 ------------- Run | Yrd Mat Turns Passed 612 | 170 442 Spaces Moved 286 | 83 203 Core 19 | 12 7 Treads 267 | 71 196 Legs . | . . Wheels . | . . Hover . | . . Flight . | . . Fastest Speed 50 | 50 100 Average Speed 155 | 144 159 Slowest Speed 200 | 160 200 Overloaded Moves . | . . Propulsion Burnouts . | . . Robots Hopped . | . . Potential Cave-ins . | . . Cave-ins Triggered . | . . Exploration Rate (%) 26 | 3 50 Regions Visited 1 Branch Regions . Pre-discovered Areas . | . . Known Exits Taken . | . . Unknown Exits Taken 1 | 1 . Scrap Searched . | . . Spaces Dug . | . . Terrain Destroyed . | . . Melee . | . . Projectile . | . . AOE . | . . Terrain Rammed . | . . Walls Destroyed . | . . Machines Disabled . | . . Actions | -11 -10 --------- Run | Yrd Mat Total 382 | 112 270 Wait 14 | 1 13 Move 285 | 82 203 Hop . | . . Pick Up 17 | 10 7 Fast Attach 3 | . 3 Attach 15 | 7 8 Detach 1 | 1 . Swap . | . . Drop 1 | . 1 Fire 46 | 11 35 Melee . | . . Ram . | . . Kick . | . . Crush . | . . Escape Stasis . | . . Rewire . | . . Trap . | . . Miscellaneous . | . . Route ------- -11/Scrapyard -10/Materials (discovered 2 exits: [*Mat] / [*Min]) History --------- Turn | Location | Event 47 | -11/Scrapyard | Discovered new exit (range 13) 171 | -11/Scrapyard | Entered Materials 316 | -10/Materials | Build established: Mutant 346 | -10/Materials | Discovered new exit (range 13) 505 | -10/Materials | Discovered new exit (range 8) 600 | -10/Materials | Core integrity fell below 50% 607 | -10/Materials | Core integrity fell below 20% 613 | -10/Materials | Destroyed by G-47 Trooper with Particle Gun Last Messages --------------- K-01 Serf collects debris. When the line of fire is red, you are attempting to shoot through an object at another target, which incurs significant penalties. Med. Laser destroyed. K-01 Serf collects debris. R-06 Scavenger collects Heat Sink. K-01 Serf collects debris. Lgt. Treads destroyed. K-01 Serf collects debris. Lgt. Treads destroyed. K-01 Serf collects debris. Lgt. Armor Plating destroyed. Lgt. Assault Rifle destroyed. Mining Laser destroyed. K-01 Serf collects debris. Mining Laser destroyed. R-06 Scavenger collects Sml. Laser. Lgt. Armor Plating destroyed. Critical hit (Burn: +37). Map ----- +----------------------------------------------------+ | # # # #??????????????????????? | | ############+#+# #??????????????????????? | | ###### # #??????????????????????? | | + #??????????????????????? | | ###### # #??????????????????????? | | ##????# ###### ! #??????????????????????? | | #?????# #????# !! #??????????????????????? | | #?????# #????###########??????????????????????? | | #?????# #???###???????????????????????????????? | | +#?????# #??# ????????????????????????????????? | | ???????# #??# #????????????????????????????????? | | ???????# #### #????????????????????????????????? | | # #????????????????????????????????? | | + #?#######????????????????????????? | | # #?""!"!""#???????????????????????? | | ???????# #? "!"!" #????##+###?????????????? | | ???????# ##= ##### ????????????? | | ???????# % ?????????????? | | ???????# * < ????????????? | | ######## ?????????????? | | # # ??????????????? | | % ######### ??????????????? | | g% g ???????????????? | | ???????????????? | | "" """ """ r!! g""" /??????????????? | | Y" """ """ ]! @""" =??????????????? | | """ """g ]! """ ??????????????? | | w ???????????????? | | w ???????????? | | +#####T###### ##### #""T""######/##????????????? | | #?????????# ????# #"""""#????????????????????? | | #?????????# ????# #######????????????????????? | | ] #?????????#+????# #??????????????????????????? | | #??####?????????# #??????????????????????????? | | ### #?????????# #??????????????????????????? | | #?????????# #??????????????????????????? | | +????????? ! ??????????????????????????? | | #????????? ??????????????????????????? | | ### #????????+ " ??????????????????????????? | | ???# ##????????# ??????????????????????????? | | ???? #?????????# ? #?????????????????????????? | | ????? #??????????##?##??????????????????????????? | | ?????? #?????????????????????????????????????????? | | ??????? ?????????????????????????????????????????? | | ???????? ????????????????????????????????????????? | | ????????? ???????????????????????????????????????? | | ?????????????????????????????????????????????????? | | ?????????????????????????????????????????????????? | | ?????????????????????????????????????????????????? | | ?????????????????????????????????????????????????? | +----------------------------------------------------+ Best States ------------- Heat Dissipation 25 Energy Generation 10 Energy Capacity 250 Matter Stores 300 Matter Capacity 300 Sight Range 16 Terrain Scan Density 10 Armor Coverage 150 Evasion (%) 50 Recoil Reduction 2 Item Schematics ----------------- None Robot Schematics ------------------ None Fabricated ------------ Nothing Repaired ---------- Nothing Studied --------- None Alien Tech Used ----------------- None Achievements -------------- None Challenges ------------ None Game ------ Seed HardcellTargetCorpse Manual? 0 Play Time 00:11:12 Cumulative 2.7 hours Start 2026.03.24 @ 19:28:42 End 2026.03.24 @ 19:39:19 Sessions 1 Manual Loads 0 Difficulty Rogue Special Mode None Game No. 5 Rogue 5 Adventurer 0 Explorer 0 Win Type - Total 0 Types 0/0/0/0/0/0/0/0/0/0 Lore% 1 Gallery% 4 Achievement% 5 Wizard Run 0 Options --------- Layout 1 ASCII 0 Keyboard 0 Movement Numpad Keybinds 0 Fullscreen 1 Font 32/SmallcapsGlow Map View 50x35 Zoom Use 0% Tactical HUD 0 Map Filters NONE Filters NONE Steam 1 RUN: a49c83a0-b0f5-4881-b716-bf049ca2829f